bitfinex-derivatives/quotes_BTCF0:USTF0_20250710
["timestamp","ask_amount","ask_price","bid_price","bid_amount"]
[1752123431767,0.21852398,111190.0,111180.0,2.10018421]
[1752123432077,0.21852398,111190.0,111180.0,1.74018421]
[1752123432273,0.21852398,111190.0,111180.0,2.11018421]
[1752123435071,0.21852398,111190.0,111180.0,2.12018421]
[1752123435774,0.1808091,111190.0,111180.0,2.12018421]
[1752123435976,0.21839186,111190.0,111180.0,2.12018421]
[1752123436486,0.21839186,111190.0,111180.0,2.06018421]
[1752123437279,0.03858276,111190.0,111180.0,2.30027934]
[1752123437477,0.03858276,111190.0,111180.0,1.74018421]
[1752123437677,0.03858276,111190.0,111180.0,2.1101831]
[1752123437876,0.03858276,111190.0,111180.0,2.4047831]
[1752123440075,0.03858276,111190.0,111180.0,2.3547831]
[1752123440478,0.21839186,111190.0,111180.0,2.3547831]
[1752123441474,0.21839186,111190.0,111180.0,2.4047831]
[1752123442481,0.03858276,111190.0,111180.0,2.4047831]
[1752123443482,0.03858276,111190.0,111180.0,2.40478355]
[1752123444180,0.21839186,111190.0,111180.0,2.40478355]
[1752123445072,0.21839186,111190.0,111180.0,2.39478355]
[1752123446682,0.03858276,111190.0,111180.0,2.39478355]
[1752123446883,0.21839186,111190.0,111180.0,2.39478355]
[1752123447083,0.21839186,111190.0,111180.0,2.38478355]
[1752123450682,0.21839186,111190.0,111180.0,2.41478355]
[1752123451685,0.21839186,111190.0,111180.0,2.34478355]
[1752123452181,0.21839186,111190.0,111180.0,2.70558355]
[1752123452583,0.21839186,111190.0,111180.0,1.83406355]
[1752123452886,0.21839186,111190.0,111180.0,2.44534355]
[1752123455078,0.21839186,111190.0,111180.0,2.43534355]
[1752123456586,0.21839186,111190.0,111180.0,2.44534355]
[1752123463698,0.21839186,111190.0,111180.0,1.96515329]
[1752123463895,0.21839186,111190.0,111180.0,2.44534355]
[1752123464794,0.21839186,111190.0,111180.0,2.44534357]
[1752123469404,0.21839186,111190.0,111180.0,2.39534357]
[1752123469605,0.21839186,111190.0,111180.0,2.77534357]
[1752123469994,0.21839186,111190.0,111180.0,2.70534357]
[1752123471511,0.21839186,111190.0,111180.0,2.76534357]
[1752123471709,0.03858276,111190.0,111180.0,2.76534357]
[1752123475104,0.03858276,111190.0,111180.0,2.71534357]
[1752123476316,0.03858276,111190.0,111180.0,1.83406357]
[1752123476620,0.07108276,111190.0,111180.0,2.76526357]
[1752123477322,0.07108276,111190.0,111180.0,2.77526357]
[1752123479124,0.03858276,111190.0,111180.0,2.77526357]
[1752123480924,0.03858276,111190.0,111180.0,2.74526357]
[1752123481822,0.03858276,111190.0,111180.0,2.39526357]
[1752123482018,0.03858276,111190.0,111180.0,2.72526357]
[1752123482625,0.21839186,111190.0,111180.0,2.44526357]
[1752123482825,0.21839186,111190.0,111180.0,2.76526357]
[1752123483926,0.03858276,111190.0,111180.0,2.76526357]
[1752123485427,0.03858276,111190.0,111180.0,2.74526357]
[1752123485626,0.03858276,111190.0,111180.0,2.02366357]
[1752123485928,0.03858276,111190.0,111180.0,2.74526357]
[1752123486428,0.03858276,111190.0,111180.0,2.39526357]
[1752123486726,0.03858276,111190.0,111180.0,2.75526357]
[1752123490026,0.03858276,111190.0,111180.0,2.76526357]
[1752123490227,0.03858276,111190.0,111180.0,2.28507331]
[1752123490429,0.03858276,111190.0,111180.0,2.76526357]
[1752123491528,0.03858276,111190.0,111180.0,2.74526357]
[1752123495134,0.03858276,111190.0,111180.0,2.76526357]
[1752123496432,0.03858276,111190.0,111180.0,2.39526357]
[1752123496633,0.03858276,111190.0,111180.0,2.71526357]
[1752123501437,0.03858276,111190.0,111180.0,2.39526357]
[1752123501631,0.03858276,111190.0,111180.0,1.91507331]
[1752123501833,0.03858276,111190.0,111180.0,2.43526357]
[1752123502038,0.03858276,111190.0,111180.0,2.76526357]
[1752123504235,0.21839186,111190.0,111180.0,1.82406357]
[1752123504442,0.24949186,111190.0,111180.0,2.43510357]
[1752123505244,0.24949186,111190.0,111180.0,2.39510357]
[1752123505436,0.24949186,111190.0,111180.0,2.44510357]
[1752123506038,0.06968276,111190.0,111180.0,2.44510357]
[1752123506439,0.06968276,111190.0,111180.0,2.39510357]
[1752123506740,0.06968276,111190.0,111180.0,2.44510357]
[1752123508443,0.06968276,111190.0,111180.0,1.64924477]
[1752123508638,0.2248276,111160.0,111150.0,0.2248224]
[1752123508940,0.75918276,111160.0,111150.0,1.77293493]
[1752123509137,0.75918276,111160.0,111150.0,2.12786493]
[1752123509337,1.00364036,111160.0,111150.0,2.13786493]
[1752123509544,1.00364036,111160.0,111150.0,1.75786493]
[1752123509747,1.00464036,111160.0,111150.0,1.76886493]
[1752123509939,1.00464036,111160.0,111150.0,1.4838016]
[1752123510243,1.24473549,111160.0,111150.0,1.72389673]
[1752123511641,1.24373549,111160.0,111150.0,1.71389673]
[1752123511848,1.24373549,111160.0,111150.0,1.2569792]
[1752123511849,1.72592575,111160.0,111150.0,1.2569792]
[1752123512242,1.74873575,111160.0,111150.0,1.2569792]
[1752123512848,1.50864062,111160.0,111150.0,1.2489792]
[1752123513040,1.50864062,111160.0,111150.0,1.4288529]
[1752123515241,1.48583062,111160.0,111150.0,1.4288529]
[1752123515548,1.50864062,111160.0,111150.0,1.4288529]
[1752123516146,1.50864062,111160.0,111150.0,1.2489792]
[1752123516344,1.50864062,111160.0,111150.0,1.4288529]
[1752123517044,1.57895977,111160.0,111150.0,1.4288529]
[1752123517442,1.57895977,111160.0,111150.0,1.2489792]
[1752123517750,1.57895977,111160.0,111150.0,1.4288529]
[1752123520754,1.09876951,111160.0,111150.0,1.44290136]
[1752123521052,1.57895977,111160.0,111150.0,1.44290136]
[1752123521752,1.57895977,111160.0,111150.0,1.44289834]
[1752123523048,1.57895977,111160.0,111150.0,1.4288529]
[1752123523649,0.94104036,111160.0,111150.0,2.05236803]
[1752123524144,0.79248276,111160.0,111150.0,2.08536803]
[1752123524341,1.03257789,111160.0,111150.0,2.08536803]
[1752123524951,0.79248276,111160.0,111150.0,2.08564905]
[1752123525454,0.79248276,111160.0,111150.0,1.8452729]
[1752123525857,0.79248276,111160.0,111150.0,2.08564905]
[1752123526353,0.79248276,111160.0,111150.0,1.8452729]
[1752123526554,0.79248276,111160.0,111150.0,1.8052729]
[1752123526750,0.3608,111170.0,111150.0,2.5669515]
[1752123526943,0.3608,111180.0,111170.0,0.0899144]
[1752123527145,0.694423,111190.0,111180.0,0.1798252]
[1752123527349,0.95101915,111190.0,111180.0,0.2032452]
[1752123528854,0.95101915,111190.0,111180.0,0.1948952]
[1752123529447,0.95701915,111190.0,111180.0,0.1958952]
[1752123529648,0.3668,111190.0,111180.0,1.08747171]
[1752123529849,0.3668,111190.0,111180.0,1.15377171]
[1752123529850,0.01,111190.0,111180.0,1.15377171]
[1752123530151,0.3628,111200.0,111190.0,0.1798091]
[1752123530350,0.3628,111200.0,111190.0,2.14391525]
[1752123531454,0.3628,111200.0,111190.0,1.76691525]
[1752123531655,0.3628,111200.0,111190.0,2.10691525]
[1752123531850,0.3628,111200.0,111190.0,2.11591918]
[1752123533162,0.3628,111200.0,111190.0,2.10084918]
[1752123533956,0.3638,111200.0,111190.0,2.10784918]
[1752123534964,0.3638,111200.0,111190.0,1.76784918]
[1752123535259,0.3638,111200.0,111190.0,2.11784918]
[1752123536559,0.3638,111200.0,111190.0,2.12784918]
[1752123541456,0.3638,111200.0,111190.0,2.08784918]
[1752123542062,0.3638,111200.0,111190.0,2.10784918]
[1752123543158,0.3638,111200.0,111190.0,1.86747303]
[1752123543357,0.3638,111200.0,111190.0,2.10784918]
[1752123545067,0.3638,111200.0,111190.0,2.07784918]
[1752123546468,0.3638,111200.0,111190.0,2.08784918]
[1752123547567,0.3955,111200.0,111190.0,2.08784918]
[1752123549168,0.0347,111200.0,111190.0,2.08784918]
[1752123550074,0.0347,111200.0,111190.0,2.13784918]
[1752123551470,0.0347,111200.0,111190.0,2.12784918]
[1752123552483,0.10481236,111200.0,111190.0,2.09774918]
[1752123553079,0.0668,111200.0,111190.0,2.09774918]
[1752123553383,0.10483675,111200.0,111190.0,2.09774918]
[1752123556375,0.0668,111200.0,111190.0,2.09774918]
[1752123556574,0.10491418,111200.0,111190.0,2.11774918]
[1752123557084,0.10491418,111200.0,111190.0,2.09774918]
[1752123559084,0.10491418,111200.0,111190.0,1.82427303]
[1752123559288,0.10491418,111200.0,111190.0,2.06464918]
[1752123559889,0.10491418,111200.0,111190.0,2.04122918]
[1752123560082,0.10491418,111200.0,111190.0,2.06454918]
[1752123560282,0.10491418,111200.0,111190.0,2.05454918]
[1752123561492,0.10491418,111200.0,111190.0,2.02454918]
[1752123563994,0.10491418,111200.0,111190.0,2.00122918]
[1752123564180,0.48091418,111200.0,111190.0,2.00122918]
[1752123564380,0.48091418,111200.0,111190.0,1.78417303]
[1752123564586,0.90108323,111200.0,111190.0,1.43373303]
[1752123564782,1.1659808,111200.0,111190.0,1.67398989]
[1752123565290,0.92572394,111200.0,111190.0,1.67398989]
[1752123565490,1.1659808,111200.0,111190.0,1.67398989]
[1752123565797,1.1412208,111200.0,111190.0,1.67398989]
[1752123565994,0.90096394,111200.0,111190.0,1.67398989]
[1752123566294,1.1659808,111200.0,111190.0,1.67398989]
[1752123566691,1.16803892,111200.0,111190.0,1.43373303]
[1752123566887,0.92783376,111200.0,111190.0,1.4247291]
[1752123567084,0.94303376,111200.0,111190.0,1.4247291]
[1752123567288,0.94303376,111200.0,111190.0,0.1898091]
[1752123567488,0.94303376,111200.0,111190.0,0.8070891]
[1752123568102,0.94303376,111200.0,111190.0,0.8221891]
[1752123568792,0.94303376,111200.0,111190.0,0.8070891]
[1752123568998,0.94303376,111200.0,111190.0,0.8229491]
[1752123570201,0.90440376,111200.0,111190.0,0.8070891]
[1752123570401,0.94345376,111200.0,111190.0,0.8229491]
[1752123570602,0.94345376,111200.0,111190.0,0.8070891]
[1752123570803,0.94345376,111200.0,111190.0,0.8229491]
[1752123578716,0.4205023,111200.0,111190.0,1.06325766]
[1752123578918,0.04111418,111200.0,111190.0,1.48037766]
[1752123579412,0.04111418,111200.0,111190.0,1.51227766]
[1752123579714,0.40191418,111200.0,111190.0,1.51227766]
[1752123580115,0.40191418,111200.0,111190.0,1.52227766]
[1752123581617,0.40191418,111200.0,111190.0,1.49227766]
[1752123582315,0.40191418,111200.0,111190.0,1.47641766]
[1752123583108,0.04111418,111200.0,111190.0,1.47641766]
[1752123583512,0.04111418,111200.0,111190.0,1.83721766]
[1752123584420,0.003,111200.0,111190.0,1.83721766]
[1752123586522,0.003,111200.0,111190.0,1.84721766]
[1752123587022,0.003,111200.0,111190.0,1.49721766]
[1752123587325,0.003,111200.0,111190.0,1.82721766]
[1752123591616,0.003,111200.0,111190.0,1.80721766]
[1752123592123,0.003,111200.0,111190.0,1.83721766]
[1752123596526,0.003,111200.0,111190.0,1.82721766]
[1752123597227,0.003,111200.0,111190.0,1.46641766]
[1752123597524,0.003,111200.0,111190.0,1.84721766]
[1752123598819,0.003,111200.0,111190.0,1.84709021]
[1752123600124,0.003,111200.0,111190.0,1.82709021]
[1752123600721,1e-07,111200.0,111190.0,2.06727132]
[1752123600926,0.3608,111220.0,111210.0,0.1797768]
[1752123601126,0.3608,111220.0,111210.0,1.60513902]
[1752123601424,0.39865505,111220.0,111210.0,1.46608791]
[1752123601826,0.03785505,111220.0,111210.0,1.46608791]
[1752123602017,0.03785505,111220.0,111210.0,1.13908791]
[1752123602323,0.03785505,111220.0,111210.0,1.68926902]
[1752123603025,0.03785505,111220.0,111210.0,1.4489868]
[1752123604825,0.06885505,111220.0,111210.0,1.4489868]
[1752123605325,0.06885505,111220.0,111210.0,1.4499868]
[1752123605527,0.06885505,111220.0,111210.0,1.1399868]
[1752123605720,0.06885505,111220.0,111210.0,1.4999868]
[1752123606421,0.06885505,111220.0,111210.0,1.4845368]
[1752123606618,0.06885505,111220.0,111210.0,1.4645368]
[1752123608029,0.031,111220.0,111210.0,1.4645368]
[1752123608222,0.0637,111220.0,111210.0,1.4645368]
[1752123608828,0.10133804,111220.0,111210.0,1.4645368]
[1752123609026,0.0637,111220.0,111210.0,1.4024368]
[1752123609226,0.0637,111220.0,111210.0,1.1623568]
[1752123609529,0.0637,111220.0,111210.0,1.3788568]
[1752123610137,0.0637,111220.0,111210.0,1.3924368]
[1752123610629,0.0637,111220.0,111210.0,1.3688568]
[1752123611035,0.0637,111220.0,111210.0,1.3924368]
[1752123611529,0.9218985,111220.0,111210.0,0.1837768]
[1752123611737,0.9218985,111220.0,111210.0,0.8148268]
[1752123612638,0.7421379,111220.0,111210.0,0.8148268]
[1752123613826,0.5020579,111220.0,111210.0,0.8148268]
[1752123618833,0.5020579,111220.0,111210.0,1.0549068]
[1752123619536,0.9218985,111220.0,111210.0,0.1837768]
[1752123619834,0.9218985,111220.0,111210.0,0.7988568]
[1752123620236,0.9218985,111220.0,111210.0,0.8143068]
[1752123620430,0.9218985,111220.0,111210.0,0.7988568]
[1752123620936,0.9218985,111220.0,111210.0,0.8142668]
[1752123623141,0.9218985,111220.0,111210.0,0.7988168]
[1752123625030,0.9218985,111220.0,111210.0,0.8142668]
[1752123625427,0.9218985,111220.0,111210.0,0.7988168]
[1752123625632,0.9218985,111220.0,111210.0,0.8142668]
[1752123629139,0.9218985,111220.0,111210.0,0.8137468]
[1752123629636,0.92190342,111220.0,111210.0,0.8137468]
[1752123633646,1.28270342,111220.0,111210.0,0.8137468]
[1752123639044,1.52302678,111220.0,111210.0,0.8137468]
[1752123640149,1.04262342,111220.0,111210.0,0.8137468]
[1752123640342,1.52302678,111220.0,111210.0,0.8137468]
[1752123643257,1.60389231,111220.0,111210.0,0.8137468]
[1752123645256,1.52302678,111220.0,111210.0,0.7982968]
[1752123646563,1.52302678,111220.0,111210.0,0.2000068]
[1752123646767,1.74645846,111220.0,111210.0,0.61752]
[1752123646961,1.50625678,111220.0,111210.0,0.004]
[1752123649268,1.58712231,111220.0,111210.0,0.004]
[1752123650468,1.58712231,111220.0,111210.0,0.1837767]
[1752123654270,1.58712231,111220.0,111210.0,0.004]
[1752123655378,1.82732399,111220.0,111210.0,0.004]
[1752123655670,1.58712231,111220.0,111210.0,0.004]
[1752123661166,1.61407749,111220.0,111210.0,0.004]
[1752123662466,1.50625678,111220.0,111210.0,0.004]
[1752123663575,1.74645846,111220.0,111210.0,0.004]
[1752123663778,1.50625678,111220.0,111210.0,0.004]
[1752123664872,0.3596131,111200.0,111190.0,0.2247551]
[1752123665077,1.59925928,111200.0,111190.0,0.2247551]
[1752123665380,0.1798091,111190.0,111180.0,0.01691013]
[1752123665673,1.12345528,111190.0,111180.0,0.19673533]
[1752123665870,1.73693528,111190.0,111180.0,0.01691013]
[1752123666877,1.49691706,111190.0,111180.0,0.01691013]
[1752123667176,1.49691706,111190.0,111180.0,0.19673533]
[1752123667571,1.50191706,111190.0,111180.0,0.19673533]
[1752123668378,1.52525706,111190.0,111180.0,0.19673533]
[1752123674482,1.52525706,111190.0,111180.0,0.01691013]
[1752123674783,1.52525706,111190.0,111180.0,0.19673533]
[1752123675277,1.52525706,111190.0,111180.0,0.01691013]
[1752123680987,1.88605706,111190.0,111180.0,0.01691013]
[1752123684288,0.1798252,111180.0,111170.0,0.3473062]
[1752123684487,0.8371713,111180.0,111170.0,0.3624862]
[1752123684681,0.9091113,111180.0,111170.0,0.3624862]
[1752123685077,0.8857713,111180.0,111170.0,0.3624862]
[1752123685281,0.9091113,111180.0,111170.0,0.3624862]
[1752123685588,0.9101113,111180.0,111170.0,0.3624862]
[1752123686089,0.8867713,111180.0,111170.0,0.3624862]
[1752123686277,0.9101113,111180.0,111170.0,0.3624862]
[1752123686477,0.8867713,111180.0,111170.0,0.3624862]
[1752123686787,0.9126813,111180.0,111170.0,0.3624862]
[1752123688891,1.1530207,111180.0,111170.0,0.3624862]
[1752123690087,1.1530207,111180.0,111170.0,0.3934862]
[1752123691995,1.1530207,111180.0,111170.0,0.63384847]
[1752123692491,1.1530207,111180.0,111170.0,0.3934862]
[1752123692895,1.1530207,111180.0,111170.0,0.63384847]
[1752123693596,1.1530207,111180.0,111170.0,0.3934862]
[1752123693896,1.1530207,111180.0,111170.0,0.63384847]
[1752123694401,1.1530207,111180.0,111170.0,0.3934862]
[1752123694798,0.91265905,111180.0,111170.0,0.3934862]
[1752123696198,0.94545905,111180.0,111170.0,0.3934862]
[1752123699100,0.94545905,111180.0,111170.0,0.3624862]
[1752123702303,0.70509616,111180.0,111170.0,0.3624862]
[1752123702603,0.94545905,111180.0,111170.0,0.3624862]
[1752123703804,0.94545905,111180.0,111170.0,0.3774862]
[1752123705905,0.70509616,111180.0,111170.0,0.3774862]
[1752123706307,0.70409616,111180.0,111170.0,0.3784862]
[1752123707101,0.70409616,111180.0,111170.0,0.7284862]
[1752123707506,0.70309616,111180.0,111170.0,0.7284862]
[1752123707709,0.70309616,111180.0,111170.0,0.7294862]
[1752123708403,0.94345905,111180.0,111170.0,0.3794862]
[1752123708908,0.70309616,111180.0,111170.0,0.3794862]
[1752123709111,0.94345905,111180.0,111170.0,0.3794862]
[1752123714404,0.94345905,111180.0,111170.0,0.3317062]
[1752123714605,0.94345905,111180.0,111170.0,0.3472162]
[1752123715306,0.94345905,111180.0,111170.0,0.3317062]
[1752123715509,0.94345905,111180.0,111170.0,0.3472162]
[1752123715714,0.70309616,111180.0,111170.0,0.3317062]
[1752123715915,0.68457802,111180.0,111170.0,0.6972162]
[1752123716112,0.88363091,111180.0,111170.0,0.7017062]
[1752123716312,0.92464091,111180.0,111170.0,0.7172162]
[1752123716508,0.92464091,111180.0,111170.0,0.6672162]
[1752123716816,1.16496308,111180.0,111170.0,0.90755873]
[1752123717824,1.16496308,111180.0,111170.0,0.89755873]
[1752123718418,1.16496308,111180.0,111170.0,0.6572162]
[1752123718626,1.16496308,111180.0,111170.0,0.89755873]
[1752123718826,1.16496308,111180.0,111170.0,0.93755873]
[1752123719028,0.74479535,111180.0,111170.0,0.93755873]
[1752123719323,0.39844282,111180.0,111170.0,0.92755873]
[1752123719527,0.39844282,111180.0,111170.0,0.99075873]
[1752123719827,0.39844282,111180.0,111170.0,1.01546873]
[1752123720229,0.39843147,111180.0,111170.0,1.01546873]
[1752123720832,0.03763147,111180.0,111170.0,1.25581126]
[1752123721016,0.39843147,111180.0,111170.0,1.25581126]
[1752123721329,0.39843147,111180.0,111170.0,1.43570726]
[1752123721829,0.3608,111180.0,111170.0,1.43570726]
[1752123722530,0.36093507,111190.0,111180.0,0.19705702]
[1752123722728,0.39818797,111190.0,111180.0,1.42863208]
[1752123722925,0.39818797,111190.0,111180.0,1.18818167]
[1752123723230,0.39818797,111190.0,111180.0,1.44818167]
[1752123723925,0.39918797,111190.0,111180.0,1.44818167]
[1752123724234,0.40018797,111190.0,111180.0,1.44818167]
[1752123725024,0.39918797,111190.0,111180.0,1.50018167]
[1752123725622,0.39818797,111190.0,111180.0,1.50318167]
[1752123726032,0.39818797,111190.0,111180.0,1.5602456]
[1752123726328,0.36093507,111190.0,111180.0,1.5844956]
[1752123726732,0.00013507,111190.0,111180.0,2.00461024]
[1752123727333,0.00013507,111190.0,111180.0,2.36541024]
[1752123728434,0.00013507,111190.0,111180.0,2.12517559]
[1752123729530,0.00013507,111190.0,111180.0,1.88494094]
[1752123729732,0.00013507,111190.0,111180.0,2.12517559]
[1752123730138,0.00013507,111190.0,111180.0,2.06517559]
[1752123731526,0.00013507,111190.0,111180.0,2.08517559]
[1752123733240,0.00013507,111190.0,111180.0,1.72437559]
[1752123733535,0.55624427,111190.0,111180.0,1.4584456]
[1752123733737,0.62044427,111190.0,111180.0,1.4584456]
[1752123734130,0.44063507,111190.0,111180.0,1.4584456]
[1752123735028,0.62044427,111190.0,111180.0,1.4984456]
[1752123735933,0.62044427,111190.0,111180.0,1.5226956]
[1752123736437,0.62044427,111190.0,111180.0,1.1526956]
[1752123736738,0.62044427,111190.0,111180.0,1.4826956]
[1752123738036,0.62044427,111190.0,111180.0,1.4584456]
[1752123738429,0.62044427,111190.0,111180.0,1.21821095]
[1752123738635,0.62044427,111190.0,111180.0,1.4826956]
[1752123739932,0.62044427,111190.0,111180.0,1.4584456]
[1752123740132,0.62044427,111190.0,111180.0,1.1284456]
[1752123740336,0.62044427,111190.0,111180.0,1.4584456]
[1752123740934,0.62044427,111190.0,111180.0,1.1384456]
[1752123741439,0.62044427,111190.0,111180.0,1.4984456]
[1752123742243,0.62044427,111190.0,111180.0,1.1284456]
[1752123742540,0.62044427,111190.0,111180.0,1.4584456]
[1752123745845,0.62044427,111190.0,111180.0,1.4384456]
[1752123746046,0.44063507,111190.0,111180.0,1.4384456]
[1752123746544,0.44063507,111190.0,111180.0,1.4626956]
[1752123746932,0.44063507,111190.0,111180.0,1.4726956]
[1752123747446,0.42513507,111190.0,111180.0,1.4726956]
[1752123747641,0.42513507,111190.0,111180.0,1.5034956]
[1752123750345,0.42513507,111190.0,111180.0,1.5334956]
[1752123751547,0.46185342,111190.0,111180.0,1.5334956]
[1752123752549,0.46185342,111190.0,111180.0,1.4934956]
[1752123753058,0.46185342,111190.0,111180.0,1.55353997]
[1752123755753,0.47842342,111190.0,111180.0,1.55353997]
[1752123755955,0.47842342,111190.0,111180.0,1.24353997]
[1752123756255,0.47842342,111190.0,111180.0,1.57353997]
[1752123756954,0.47842342,111190.0,111180.0,1.24353997]
[1752123757156,0.47842342,111190.0,111180.0,1.56353997]
[1752123759850,0.64166262,111190.0,111180.0,0.04223182]
[1752123760059,0.1798254,111180.0,111170.0,0.8977111]
[1752123760253,0.91012277,111180.0,111170.0,0.8527516]
[1752123760762,0.91012277,111180.0,111170.0,0.8078016]
[1752123761057,0.91012277,111180.0,111170.0,0.015]
[1752123761563,0.91012277,111180.0,111170.0,0.1948416]
[1752123762457,0.91212277,111180.0,111170.0,0.1968416]
[1752123762857,1.52508277,111180.0,111170.0,0.1968416]
[1752123763256,1.55728277,111180.0,111170.0,0.1968416]
[1752123763456,1.57992277,111180.0,111170.0,0.1968416]
[1752123763757,1.27964375,111180.0,111170.0,0.1968416]
[1752123764058,1.57992277,111180.0,111170.0,0.1968416]
[1752123770756,0.1798578,111160.0,111150.0,0.00179929]
[1752123771054,1.29539622,111160.0,111150.0,0.00179929]
[1752123771253,1.32819622,111160.0,111150.0,0.00179929]
[1752123771653,1.01265126,111160.0,111150.0,0.00179929]
[1752123771959,0.97595385,111160.0,111150.0,1.43157319]
[1752123772154,1.01262576,111160.0,111150.0,1.41515319]
[1752123772350,0.79996796,111160.0,111150.0,1.74713221]
[1752123772558,0.92051385,111160.0,111150.0,1.74813221]
[1752123772756,0.92051385,111160.0,111150.0,1.47625319]
[1752123773257,0.92151385,111160.0,111150.0,1.47525319]
[1752123773660,0.92051385,111160.0,111150.0,1.47525319]
[1752123773859,0.92051385,111160.0,111150.0,1.47625319]
[1752123774358,0.92051385,111160.0,111150.0,0.83357319]
[1752123774359,1.26000287,111160.0,111150.0,0.83357319]
[1752123774561,1.32380287,111160.0,111150.0,0.84995319]
[1752123775154,1.32380287,111160.0,111150.0,0.83353319]
[1752123775354,1.32380287,111160.0,111150.0,0.84995319]
[1752123777963,1.30742287,111160.0,111150.0,0.84995319]
[1752123778561,1.30742287,111160.0,111150.0,0.83353319]
[1752123778760,1.30742287,111160.0,111150.0,0.84993319]
[1752123778960,1.0438305,111160.0,111150.0,0.84993319]
[1752123779562,1.34410952,111160.0,111150.0,0.84993319]
[1752123780063,1.0438305,111160.0,111150.0,0.84993319]
[1752123780260,1.34410952,111160.0,111150.0,0.84993319]
[1752123781066,1.0438305,111160.0,111150.0,0.84993319]
[1752123781960,1.34410952,111160.0,111150.0,0.84993319]
[1752123782162,1.0438305,111160.0,111150.0,0.88263319]
[1752123782362,1.0114305,111160.0,111150.0,0.88263319]
[1752123783767,1.31170952,111160.0,111150.0,0.88263319]
[1752123783964,1.31170952,111160.0,111150.0,0.89644621]
[1752123785067,1.0114305,111160.0,111150.0,0.89644621]
[1752123789263,0.75828665,111160.0,111150.0,0.89644621]
[1752123789464,0.03668665,111160.0,111150.0,1.57672523]
[1752123789765,0.03668665,111160.0,111150.0,1.91752523]
[1752123790072,0.03668665,111160.0,111150.0,1.86752523]
[1752123791469,0.03668665,111160.0,111150.0,1.87752523]
[1752123793066,0.03668665,111160.0,111150.0,1.55752523]
[1752123793266,0.03668665,111160.0,111150.0,1.89438523]
[1752123793771,0.5406416,111170.0,111160.0,0.1798578]
[1752123793967,0.59165851,111170.0,111160.0,0.29334592]
[1752123794571,0.61448851,111170.0,111160.0,0.29334592]
[1752123794872,0.61448851,111170.0,111160.0,0.29358998]
[1752123795070,0.61448851,111170.0,111160.0,0.29558998]
[1752123795961,0.61448851,111170.0,111160.0,0.29658998]
[1752123798172,0.61448851,111170.0,111160.0,0.92186998]
[1752123798364,0.91476753,111170.0,111160.0,0.90546998]
[1752123798764,0.90935753,111170.0,111160.0,0.90546998]
[1752123798966,0.64748851,111170.0,111160.0,0.90546998]
[1752123799167,0.64748851,111170.0,111160.0,0.92186998]
[1752123799665,0.94776753,111170.0,111160.0,0.92186998]
[1752123800174,0.94776753,111170.0,111160.0,0.88876998]
[1752123800374,0.67998851,111170.0,111160.0,0.88876998]
[1752123800569,0.98026753,111170.0,111160.0,0.88876998]
[1752123800870,0.98026753,111170.0,111160.0,0.88877048]
[1752123801874,0.98026753,111170.0,111160.0,0.85557048]
[1752123802066,0.67998851,111170.0,111160.0,0.85557048]
[1752123803978,0.98026753,111170.0,111160.0,0.23029048]
[1752123804177,0.98026753,111170.0,111160.0,0.85485048]
[1752123805968,0.67998851,111170.0,111160.0,0.85485048]
[1752123806673,0.98026753,111170.0,111160.0,0.85485048]
[1752123807078,0.67998851,111170.0,111160.0,0.85485048]
[1752123808579,0.98026753,111170.0,111160.0,0.85485048]
[1752123809081,0.67998851,111170.0,111160.0,0.85485048]
[1752123809682,0.98026753,111170.0,111160.0,0.85485048]
[1752123810981,0.67998851,111170.0,111160.0,0.85485048]
[1752123812575,0.67998851,111170.0,111160.0,0.8407929]
[1752123812781,0.98026753,111170.0,111160.0,0.8407929]
[1752123812976,0.98114753,111170.0,111160.0,0.8396129]
[1752123813181,0.98114753,111170.0,111160.0,0.8243929]
[1752123813380,0.98114753,111170.0,111160.0,0.8396129]
[1752123816486,0.94185753,111170.0,111160.0,0.8243929]
[1752123816685,0.98114753,111170.0,111160.0,0.8396129]
[1752123816986,0.98114753,111170.0,111160.0,0.8243929]
[1752123817386,0.98114753,111170.0,111160.0,0.8396129]
[1752123817586,0.98114753,111170.0,111160.0,0.8243929]
[1752123818085,0.98114753,111170.0,111160.0,0.8396129]
[1752123818685,0.98114753,111170.0,111160.0,0.8243929]
[1752123818883,0.98114753,111170.0,111160.0,0.003]
[1752123819076,0.98114753,111170.0,111160.0,0.1828578]
[1752123819483,1.06198071,111170.0,111160.0,0.1828578]
[1752123819686,1.06198071,111170.0,111160.0,0.003]
[1752123819982,1.06398071,111170.0,111160.0,0.003]
[1752123820690,0.98314753,111170.0,111160.0,0.001]
[1752123821188,1.09096824,111170.0,111160.0,0.001]
[1752123821486,0.98314753,111170.0,111160.0,0.001]
[1752123822490,1.06399546,111170.0,111160.0,0.1808578]
[1752123824483,0.98314753,111170.0,111160.0,0.001]
[1752123831087,0.94771062,111170.0,111160.0,0.001]
[1752123831292,0.98320849,111170.0,111160.0,0.001]
[1752123831791,1.06405642,111170.0,111160.0,0.001]
[1752123837397,0.1798577,111160.0,111150.0,0.18167319]
[1752123837696,1.28052361,111160.0,111150.0,0.18167319]
[1752123837896,0.98024459,111160.0,111150.0,0.00179929]
[1752123838496,1.28052361,111160.0,111150.0,0.01586016]
[1752123838695,1.28052361,111160.0,111150.0,0.01686016]
[1752123838894,0.98024459,111160.0,111150.0,0.01686016]
[1752123839101,0.98024459,111160.0,111150.0,0.19673406]
[1752123839600,1.28252361,111160.0,111150.0,0.19673406]
[1752123839896,0.98224459,111160.0,111150.0,0.19673406]
[1752123840202,0.98224459,111160.0,111150.0,0.19873406]
[1752123840399,0.98224459,111160.0,111150.0,0.22903406]
[1752123840600,0.98224459,111160.0,111150.0,0.21497319]
[1752123843503,0.98224459,111160.0,111150.0,0.21297319]
[1752123843902,0.98224459,111160.0,111150.0,0.22703404]
[1752123844403,1.06309252,111160.0,111150.0,0.22703404]
[1752123844701,0.98224459,111160.0,111150.0,0.22703404]
[1752123844896,1.06309252,111160.0,111150.0,0.21297319]
[1752123845296,1.03019252,111160.0,111150.0,0.24467319]
[1752123846909,1.03019252,111160.0,111150.0,0.25873404]
[1752123847498,1.03019252,111160.0,111150.0,0.25873402]
[1752123848603,1.33047154,111160.0,111150.0,0.25873402]
[1752123848906,1.03019252,111160.0,111150.0,0.25873402]
[1752123850506,1.33047154,111160.0,111150.0,0.07886012]
[1752123850707,1.37410895,111160.0,111150.0,0.07886012]
[1752123850902,1.07382993,111160.0,111150.0,0.07886012]
[1752123852208,1.66644993,111160.0,111150.0,0.07886012]
[1752123852415,1.99772895,111160.0,111150.0,0.07886012]
[1752123853413,1.99772895,111160.0,111150.0,0.01686012]
[1752123855714,1.99772895,111160.0,111150.0,0.00279929]
[1752123855912,1.99772895,111160.0,111150.0,0.0168606]
[1752123856812,1.99772895,111160.0,111150.0,0.01406131]
[1752123857011,0.1798739,111150.0,111140.0,0.2426886]
[1752123857311,1.02650719,111150.0,111140.0,0.2426886]
[1752123857806,0.66570719,111150.0,111140.0,0.2426886]
[1752123858006,1.38730719,111150.0,111140.0,0.2426886]
[1752123858203,1.38730719,111150.0,111140.0,0.2436886]